fUST/lending_fUST_20240901
["ID","MTS","AMOUNT","RATE_DAILY","PERIOD"]
[336840328,1725205841141,-500.0,0.00024657,2]
[336840329,1725205841150,-500.0,0.00024657,2]
[336840330,1725205841159,-500.0,0.00024657,2]
[336840331,1725205841170,-500.0,0.00024657,2]
[336840332,1725205841179,-500.0,0.00024657,2]
[336840333,1725205841188,-500.0,0.00024657,2]
[336840334,1725205841200,-40.27528714,0.00024657,2]
[336840335,1725205841471,-1497.71471286,0.00024657,2]
[336840336,1725205841481,-771.33,0.00024657,2]
[336840337,1725205841490,-500.0,0.00024657,2]
[336840338,1725205841500,-915.29,0.00024657,2]
[336840339,1725205841509,-500.0,0.00024657,2]
[336840340,1725205841518,-500.0,0.00024657,2]
[336840341,1725205841528,-550.37,0.00024657,2]
[336840342,1725205841538,-500.0,0.00024657,2]
[336840343,1725205841547,-927.38,0.00024657,2]
[336840344,1725205841559,-500.0,0.00024657,2]
[336840345,1725205841568,-560.32,0.00024657,2]
[336840346,1725205841577,-500.0,0.00024657,2]
[336840347,1725205841587,-500.0,0.00024657,2]
[336840348,1725205841596,-500.0,0.00024657,2]
[336840349,1725205841606,-500.0,0.00024657,2]
[336840350,1725205841615,-500.0,0.00024657,2]
[336840351,1725205841625,-500.0,0.00024657,2]
[336840352,1725205841634,-500.0,0.00024657,2]
[336840353,1725205841643,-500.0,0.00024657,2]
[336840354,1725205841653,-500.0,0.00024657,2]
[336840355,1725205841662,-500.0,0.00024657,2]
[336840356,1725205841671,-500.0,0.00024657,2]
[336840357,1725205841680,-500.0,0.00024657,2]
[336840358,1725205841689,-500.0,0.00024657,2]
[336840359,1725205841700,-500.0,0.00024657,2]
[336840360,1725205841710,-500.0,0.00024657,2]
[336840361,1725205841719,-500.0,0.00024657,2]
[336840362,1725205841729,-645.43,0.00024657,2]
[336840363,1725205841738,-500.0,0.00024657,2]
[336840364,1725205841747,-500.0,0.00024657,2]
[336840365,1725205841757,-500.0,0.00024657,2]
[336840366,1725205841767,-503.6591506,0.00024657,2]
[336840367,1725205841777,-500.0,0.00024657,2]
[336840368,1725205841786,-500.0,0.00024657,2]
[336840369,1725205841796,-500.0,0.00024657,2]
[336840370,1725205841806,-500.0,0.00024657,2]
[336840371,1725205841816,-500.0,0.00024657,2]
[336840372,1725205841825,-566.19,0.00024657,2]
[336840373,1725205841836,-500.0,0.00024657,2]
[336840374,1725205841845,-500.0,0.00024657,2]
[336840375,1725205841855,-500.0,0.00024657,2]
[336840376,1725205841864,-500.0,0.00024657,2]
[336840377,1725205841874,-500.0,0.00024657,2]
[336840378,1725205841883,-500.0,0.00024657,2]
[336840379,1725205841893,-500.0,0.00024657,2]
[336840380,1725205841902,-500.0,0.00024657,2]
[336840381,1725205841911,-584.0,0.00024657,2]
[336840382,1725205841920,-500.0,0.00024657,2]
[336840383,1725205841929,-500.0,0.00024657,2]
[336840384,1725205841938,-713.1,0.00024657,2]
[336840385,1725205841947,-500.0,0.00024657,2]
[336840386,1725205841956,-500.0,0.00024657,2]
[336840387,1725205841965,-500.0,0.00024657,2]
[336840388,1725205841975,-500.0,0.00024657,2]
[336840389,1725205841983,-1055.61,0.00024657,2]
[336840390,1725205841992,-500.0,0.00024657,2]
[336840391,1725205842001,-500.0,0.00024657,2]
[336840392,1725205842011,-500.0,0.00024657,2]
[336840393,1725205842020,-500.0,0.00024657,2]
[336840394,1725205842030,-500.0,0.00024657,2]
[336840395,1725205842038,-606.69,0.00024657,2]
[336840396,1725205842047,-502.98513735,0.00024657,2]
[336840397,1725205842057,-500.0,0.00024657,2]
[336840398,1725205842066,-500.1340863,0.00024657,2]
[336840399,1725205842075,-500.0,0.00024657,2]
[336840400,1725205842084,-500.0,0.00024657,2]
[336840401,1725205842093,-500.0,0.00024657,2]
[336840402,1725205842102,-500.0,0.00024657,2]
[336840403,1725205842111,-500.0,0.00024657,2]
[336840404,1725205842120,-500.0,0.00024657,2]
[336840405,1725205842129,-501.39074872,0.00024657,2]
[336840406,1725205842139,-500.0,0.00024657,2]
[336840407,1725205842148,-500.0,0.00024657,2]
[336840408,1725205842157,-1735.56,0.00024657,2]
[336840409,1725205842167,-500.0,0.00024657,2]
[336840410,1725205842177,-500.0,0.00024657,2]
[336840411,1725205842186,-500.0,0.00024657,2]
[336840412,1725205842196,-500.0,0.00024657,2]
[336840413,1725205842206,-500.0,0.00024657,2]
[336840414,1725205842216,-500.0,0.00024657,2]
[336840415,1725205842229,-500.0,0.00024657,2]
[336840416,1725205842238,-1998.55,0.00024657,2]
[336840417,1725205842247,-235.86466585,0.00024657,2]
[336840418,1725205842263,-264.13533415,0.00024657,2]
[336840419,1725205842274,-1822.63,0.00024657,2]
[336840420,1725205842283,-500.0,0.00024657,2]
[336840421,1725205842293,-500.0,0.00024657,2]
[336840422,1725205842304,-500.0,0.00024657,2]
[336840423,1725205842314,-500.0,0.00024657,2]
[336840424,1725205842323,-500.0,0.00024657,2]
[336840425,1725205842332,-500.0,0.00024657,2]
[336840426,1725205842342,-2168.91,0.00024657,2]
[336840427,1725205842352,-2333.57,0.00024657,2]
[336840428,1725205842361,-762.25,0.00024657,2]
[336840429,1725205842372,-509.85,0.00024657,2]
[336840430,1725205842381,-500.0,0.00024657,2]
[336840431,1725205842390,-565.48646795,0.00024657,2]
[336840432,1725205842400,-500.0,0.00024657,2]
[336840433,1725205842409,-500.0,0.00024657,2]
[336840434,1725205842419,-1065.73,0.00024657,2]
[336840435,1725205842428,-500.0,0.00024657,2]
[336840436,1725205842437,-500.0,0.00024657,2]
[336840437,1725205842446,-500.0,0.00024657,2]
[336840438,1725205842457,-500.0,0.00024657,2]
[336840439,1725205842465,-1268.23,0.00024657,2]
[336840440,1725205842474,-500.0,0.00024657,2]
[336840441,1725205842484,-756.62,0.00024657,2]
[336840442,1725205842493,-1619.17,0.00024657,2]
[336840443,1725205842503,-500.0,0.00024657,2]
[336840444,1725205842513,-560.87,0.00024657,2]
[336840445,1725205842522,-500.0,0.00024657,2]
[336840446,1725205842532,-500.0,0.00024657,2]
[336840447,1725205842541,-1040.18,0.00024657,2]
[336840448,1725205842550,-500.0,0.00024657,2]
[336840449,1725205842559,-500.0,0.00024657,2]
[336840450,1725205842569,-500.0,0.00024657,2]
[336840451,1725205842579,-2472.66,0.00024657,2]
[336840452,1725205842588,-1049.58,0.00024657,2]
[336840453,1725205842598,-500.0,0.00024657,2]
[336840454,1725205842608,-500.0,0.00024657,2]
[336840455,1725205842618,-571.0,0.00024657,2]
[336840456,1725205842628,-500.0,0.00024657,2]
[336840457,1725205842637,-500.0,0.00024657,2]
[336840458,1725205842647,-500.0,0.00024657,2]
[336840459,1725205842656,-500.0,0.00024657,2]
[336840460,1725205842666,-1967.27,0.00024657,2]
[336840461,1725205842676,-500.0,0.00024657,2]
[336840462,1725205842686,-506.0353912,0.00024657,2]
[336840463,1725205842695,-1641.0,0.00024657,2]
[336840464,1725205842709,-500.0,0.00024657,2]
[336840465,1725205842719,-2682.46,0.00024657,2]
[336840466,1725205842729,-500.0,0.00024657,2]
[336840467,1725205842868,-500.0,0.00024657,2]
[336840468,1725205842878,-602.37,0.00024657,2]
[336840469,1725205842888,-500.0,0.00024657,2]
[336840470,1725205842897,-500.0,0.00024657,2]
[336840471,1725205842906,-500.0,0.00024657,2]
[336840472,1725205842916,-621.23,0.00024657,2]
[336840473,1725205842925,-500.0,0.00024657,2]
[336840474,1725205842934,-500.0,0.00024657,2]
[336840475,1725205842943,-1010.78,0.00024657,2]
[336840476,1725205842956,-505.05089213,0.00024657,2]
[336840477,1725205842965,-1788.12,0.00024657,2]
[336840478,1725205842975,-500.0,0.00024657,2]
[336840479,1725205842984,-500.0,0.00024657,2]
[336840481,1725205842994,-500.0,0.00024657,2]
[336840482,1725205843005,-505.40270031,0.00024657,2]
[336840483,1725205843015,-500.0,0.00024657,2]
[336840484,1725205843025,-500.0,0.00024657,2]
[336840485,1725205843034,-1492.02,0.00024657,2]
[336840486,1725205843044,-500.0,0.00024657,2]
[336840487,1725205843053,-12920.47,0.00024657,2]
[336840488,1725205843062,-500.0,0.00024657,2]
[336840489,1725205843072,-500.0,0.00024657,2]
[336840490,1725205843081,-501.7618558,0.00024657,2]
[336840491,1725205843091,-548.87,0.00024657,2]
[336840492,1725205843100,-500.0,0.00024657,2]
[336840493,1725205843109,-2288.1,0.00024657,2]
[336840494,1725205843119,-500.0,0.00024657,2]
[336840495,1725205843128,-500.0,0.00024657,2]
[336840496,1725205843138,-500.0,0.00024657,2]
[336840498,1725205843148,-913.72,0.00024657,2]
[336840500,1725205843157,-3669.64,0.00024657,2]
[336840502,1725205843167,-2222.5,0.00024657,2]
[336840504,1725205843177,-500.0,0.00024657,2]
[336840506,1725205843187,-487.35780852,0.00024657,2]
[336840508,1725205843197,-2558.33,0.00024657,2]
[336840511,1725205843210,-500.0,0.00024657,2]
[336840512,1725205843220,-500.0,0.00024657,2]
[336840513,1725205843231,-2379.73,0.00024657,2]
[336840514,1725205843240,-500.0,0.00024657,2]
[336840515,1725205843249,-831.55,0.00024657,2]
[336840516,1725205843261,-578.38,0.00024657,2]
[336840518,1725205843270,-500.0,0.00024657,2]
[336840519,1725205843281,-500.0,0.00024657,2]
[336840520,1725205843290,-519.01,0.00024657,2]
[336840521,1725205843300,-500.0,0.00024657,2]
[336840522,1725205843310,-502.43955749,0.00024657,2]
[336840523,1725205843319,-537.32,0.00024657,2]
[336840524,1725205843329,-500.0,0.00024657,2]
[336840526,1725205843338,-500.0,0.00024657,2]
[336840528,1725205843347,-500.0,0.00024657,2]
[336840530,1725205843356,-500.0,0.00024657,2]
[336840532,1725205843365,-500.0,0.00024657,2]
[336840533,1725205843374,-500.0,0.00024657,2]
[336840534,1725205843384,-2938.05,0.00024657,2]
[336840535,1725205843394,-3778.42,0.00024657,2]
[336840536,1725205843403,-503.68315282,0.00024657,2]
[336840537,1725205843412,-778.04,0.00024657,2]
[336840538,1725205843422,-2248.59,0.00024657,2]
[336840539,1725205843432,-1066.03,0.00024657,2]
[336840540,1725205843441,-500.0,0.00024657,2]
[336840541,1725205843454,-500.0,0.00024657,2]
[336840542,1725205843463,-500.0,0.00024657,2]
[336840543,1725205843473,-500.0,0.00024657,2]
[336840544,1725205843482,-500.0,0.00024657,2]
[336840545,1725205843491,-500.0,0.00024657,2]
[336840546,1725205843501,-676.84,0.00024657,2]
[336840547,1725205843510,-500.0,0.00024657,2]
[336840548,1725205843520,-500.0,0.00024657,2]
[336840549,1725205843529,-500.0,0.00024657,2]
[336840550,1725205843538,-979.68,0.00024657,2]
[336840551,1725205843547,-2095.22,0.00024657,2]
[336840552,1725205843557,-500.0,0.00024657,2]
[336840553,1725205843566,-503.37685167,0.00024657,2]
[336840554,1725205843576,-500.0,0.00024657,2]
[336840555,1725205843585,-1575.72,0.00024657,2]
[336840556,1725205843594,-502.5149893,0.00024657,2]
[336840557,1725205843604,-814.76,0.00024657,2]
[336840559,1725205843613,-500.0,0.00024657,2]
[336840561,1725205843623,-531.4484865,0.00024657,2]
[336840562,1725205843633,-961.75,0.00024657,2]
[336840564,1725205843642,-745.8,0.00024657,2]
[336840566,1725205843652,-2142.01,0.00024657,2]
[336840567,1725205843661,-500.0,0.00024657,2]
[336840569,1725205843670,-550.39,0.00024657,2]
[336840570,1725205843680,-857.78,0.00024657,2]
[336840572,1725205843690,-500.0,0.00024657,2]
[336840574,1725205843701,-1356.86,0.00024657,2]
[336840575,1725205843710,-500.0,0.00024657,2]
[336840576,1725205843720,-2264.42,0.00024657,2]
[336840577,1725205843729,-1506.27,0.00024657,2]
[336840578,1725205843739,-1278.5,0.00024657,2]
[336840579,1725205843748,-500.0,0.00024657,2]
[336840580,1725205843758,-876.35,0.00024657,2]
[336840581,1725205843767,-1903.69,0.00024657,2]
[336840582,1725205843777,-574.8,0.00024657,2]
[336840583,1725205843786,-206.28970598,0.00024657,2]
[336840584,1725205843796,-969.88,0.00024657,2]
[336840585,1725205843806,-500.0,0.00024657,2]
[336840586,1725205843816,-500.0,0.00024657,2]
[336840587,1725205843825,-1052.97,0.00024657,2]
[336840588,1725205843835,-501.14388475,0.00024657,2]
[336840589,1725205843844,-500.0,0.00024657,2]
[336840590,1725205843853,-500.0,0.00024657,2]
[336840591,1725205843863,-500.0,0.00024657,2]
[336840592,1725205843873,-500.0,0.00024657,2]
[336840593,1725205843882,-500.0,0.00024657,2]
[336840594,1725205843893,-915.44,0.00024657,2]
[336840595,1725205843902,-500.0,0.00024657,2]
[336840596,1725205843911,-2461.89,0.00024657,2]
[336840597,1725205843921,-1075.67,0.00024657,2]
[336840598,1725205843930,-500.0,0.00024657,2]
[336840599,1725205843939,-500.0,0.00024657,2]
[336840600,1725205843948,-575.92,0.00024657,2]
[336840601,1725205843960,-741.26,0.00024657,2]
[336840602,1725205843969,-895.2,0.00024657,2]
[336840603,1725205843979,-500.0,0.00024657,2]
[336840604,1725205843988,-500.0,0.00024657,2]
[336840605,1725205843997,-500.0,0.00024657,2]
[336840606,1725205844007,-500.0,0.00024657,2]
[336840607,1725205844016,-502.22964379,0.00024657,2]
[336840608,1725205844026,-500.0,0.00024657,2]
[336840609,1725205844035,-11225.68,0.00024657,2]
[336840610,1725205844044,-2203.57,0.00024657,2]
[336840611,1725205844054,-500.0,0.00024657,2]
[336840612,1725205844064,-1729.34,0.00024657,2]
[336840613,1725205844073,-500.0,0.00024657,2]
[336840614,1725205844082,-500.0,0.00024657,2]
[336840615,1725205844092,-673.22,0.00024657,2]
[336840616,1725205844101,-1235.1,0.00024657,2]
[336840617,1725205844111,-2023.84,0.00024657,2]
[336840618,1725205844121,-1946.65,0.00024657,2]
[336840619,1725205844130,-2262.98,0.00024657,2]
[336840620,1725205844139,-500.0,0.00024657,2]
[336840621,1725205844148,-2261.44,0.00024657,2]
[336840622,1725205844158,-500.0,0.00024657,2]
[336840623,1725205844167,-500.0,0.00024657,2]
[336840624,1725205844177,-3584.41,0.00024657,2]
[336840625,1725205844186,-2059.06,0.00024657,2]
[336840626,1725205844195,-859.34,0.00024657,2]
[336840627,1725205844207,-500.0,0.00024657,2]
[336840628,1725205844216,-4200.82,0.00024657,2]
[336840629,1725205844229,-578.62679643,0.00024657,2]
[336840630,1725205844238,-503.05168924,0.00024657,2]
[336840631,1725205844249,-2196.24,0.00024657,2]
[336840632,1725205844260,-500.0,0.00024657,2]
[336840633,1725205844270,-500.0,0.00024657,2]
[336840634,1725205844279,-500.0,0.00024657,2]
[336840635,1725205844288,-500.0,0.00024657,2]
[336840636,1725205844300,-500.0,0.00024657,2]
[336840637,1725205844309,-500.0,0.00024657,2]
[336840638,1725205844318,-2602.41,0.00024657,2]
[336840639,1725205844327,-500.0,0.00024657,2]
[336840640,1725205844337,-500.0,0.00024657,2]
[336840641,1725205844348,-2381.46,0.00024657,2]
[336840642,1725205844358,-500.0,0.00024657,2]
[336840643,1725205844367,-500.0,0.00024657,2]
[336840644,1725205844376,-2403.06,0.00024657,2]
[336840645,1725205844386,-1832.79,0.00024657,2]
[336840646,1725205844395,-1746.74,0.00024657,2]
[336840647,1725205844405,-6558.45,0.00024657,2]
[336840648,1725205844415,-200.0,0.00024657,2]
[336840649,1725205844425,-500.0,0.00024657,2]
[336840650,1725205844435,-500.0,0.00024657,2]
[336840651,1725205844444,-699.16,0.00024657,2]
[336840652,1725205844459,-597.87,0.00024657,2]
[336840653,1725205844468,-500.0,0.00024657,2]
[336840654,1725205844478,-1822.47,0.00024657,2]
[336840655,1725205844487,-500.0,0.00024657,2]
[336840656,1725205844497,-500.0,0.00024657,2]
[336840657,1725205844506,-525.71,0.00024657,2]
[336840658,1725205844515,-154.45372973,0.00024673,2]
[336840659,1725205844525,-500.0,0.00024673,2]
[336840660,1725205844534,-534.0,0.00024673,2]
[336840661,1725205844543,-500.0,0.00024673,2]
[336840662,1725205844552,-500.0,0.00024673,2]
[336840663,1725205844562,-500.0,0.00024673,2]
[336840664,1725205844572,-150.112233,0.000249,2]
[336840665,1725205844581,-500.0,0.00024931,2]
[336840666,1725205844591,-500.0,0.00024931,2]
[336840667,1725205844601,-504.87629829,0.00024931,2]
[336840668,1725205844611,-500.0,0.00024931,2]
[336840669,1725205844620,-500.0,0.00024931,2]
[336840670,1725205844630,-500.0,0.00024931,2]
[336840671,1725205844639,-1447.64,0.00024931,2]
[336840672,1725205844649,-500.0,0.00024931,2]
[336840673,1725205844658,-500.0,0.00024931,2]
[336840674,1725205844668,-500.0,0.00024931,2]
[336840675,1725205844678,-500.0,0.00024931,2]
[336840676,1725205844687,-500.0,0.00024931,2]
[336840677,1725205844698,-500.0,0.00024931,2]
[336840678,1725205844711,-500.0,0.00024931,2]
[336840679,1725205844720,-502.1,0.00024931,2]
[336840680,1725205844729,-620.11,0.00024931,2]
[336840681,1725205844739,-500.0,0.00024931,2]
[336840682,1725205844748,-500.0,0.00024931,2]
[336840683,1725205844758,-500.0,0.00024931,2]
[336840684,1725205844768,-500.0,0.00024931,2]
[336840685,1725205844777,-500.0,0.00024931,2]
[336840686,1725205844787,-500.0,0.00024931,2]
[336840687,1725205844796,-500.0,0.00024931,2]
[336840688,1725205844806,-1104.26,0.00024931,2]
[336840689,1725205844815,-500.0,0.00024931,2]
[336840690,1725205844824,-500.0,0.00024931,2]
[336840691,1725205844834,-500.0,0.00024931,2]
[336840692,1725205844843,-500.0,0.00024931,2]
[336840693,1725205844853,-500.0,0.00024931,2]
[336840694,1725205844862,-500.0,0.00024931,2]
[336840695,1725205844872,-500.0,0.00024931,2]
[336840696,1725205844881,-500.0,0.00024931,2]
[336840697,1725205844890,-503.37921185,0.00024931,2]
[336840698,1725205844899,-500.0,0.00024931,2]
[336840699,1725205844909,-500.0,0.00024931,2]
[336840700,1725205844919,-500.0,0.00024931,2]
[336840701,1725205844929,-500.0,0.00024931,2]
[336840702,1725205844938,-500.0,0.00024931,2]
[336840703,1725205844947,-849.37,0.00024931,2]
[336840704,1725205844959,-500.0,0.00024931,2]
[336840705,1725205844969,-502.554576,0.00024931,2]
[336840706,1725205844978,-801.77,0.00024931,2]
[336840707,1725205844988,-500.0,0.00024931,2]
[336840708,1725205844997,-500.0,0.00024931,2]
[336840709,1725205845008,-500.0,0.00024931,2]
[336840710,1725205845017,-500.0,0.00024931,2]
[336840711,1725205845026,-500.0,0.00024931,2]
[336840712,1725205845036,-500.0,0.00024931,2]
[336840713,1725205845045,-500.0,0.00024931,2]
[336840714,1725205845055,-666.01,0.00024931,2]
[336840715,1725205845064,-401.917107,0.00024931,7]
[336840716,1725205845073,-401.917107,0.00024931,7]
[336840717,1725205845083,-763.48,0.00024931,2]
[336840718,1725205845092,-500.0,0.00024931,2]
[336840719,1725205845102,-500.0,0.00024931,2]
[336840720,1725205845112,-500.0,0.00024931,2]
[336840721,1725205845121,-686.51,0.00024931,2]
[336840722,1725205845130,-741.64,0.00024931,2]
[336840723,1725205845140,-500.0,0.00024931,2]
[336840724,1725205845150,-500.0,0.00024931,2]
[336840725,1725205845159,-500.0,0.00024931,2]
[336840726,1725205845169,-592.75,0.00024931,2]
[336840727,1725205845178,-500.0,0.00024931,2]
[336840728,1725205845188,-500.0,0.00024931,2]
[336840729,1725205845198,-500.0,0.00024931,2]
[336840730,1725205845209,-500.0,0.00024931,2]
[336840731,1725205845221,-1377.17,0.00024931,2]
[336840732,1725205845232,-500.0,0.00024931,2]
[336840733,1725205845242,-500.0,0.00024931,2]
[336840734,1725205845252,-500.0,0.00024931,2]
[336840735,1725205845261,-500.0,0.00024931,2]
[336840736,1725205845270,-596.72,0.00024931,2]
[336840737,1725205845279,-500.0,0.00024931,2]
[336840738,1725205845289,-391.05981609,0.00024931,2]
[336840739,1725205845299,-819.32,0.00024931,2]
[336840740,1725205845309,-500.0,0.00024931,2]
[336840741,1725205845319,-1093.72,0.00024931,2]
[336840742,1725205845328,-500.0,0.00024931,2]
[336840743,1725205845338,-607.99165756,0.00024931,2]
[336840744,1725205845348,-500.0,0.00024931,2]
[336840745,1725205845357,-1141.89,0.00024931,2]
[336840746,1725205845367,-500.0,0.00024931,2]
[336840747,1725205845377,-500.0,0.00024931,2]
[336840748,1725205845387,-926.18,0.00024931,2]
[336840749,1725205845396,-530.41,0.00024931,2]
[336840750,1725205845406,-500.0,0.00024931,2]
[336840751,1725205845416,-500.0,0.00024931,2]
[336840752,1725205845425,-680.37,0.00024931,2]
[336840753,1725205845434,-500.0,0.00024931,2]
[336840754,1725205845442,-500.0,0.00024931,2]
[336840755,1725205845571,-500.0,0.00024931,2]
[336840756,1725205845580,-500.0,0.00024931,2]
[336840757,1725205845589,-151.0,0.00024931,7]
[336840758,1725205845599,-151.0,0.00024931,7]
[336840759,1725205845608,-500.0,0.00024931,2]
[336840760,1725205845617,-500.0,0.00024931,2]
[336840761,1725205845627,-500.0,0.00024931,2]
[336840762,1725205845636,-500.0,0.00024931,2]
[336840763,1725205845645,-301.22791821,0.00024931,2]
[336840764,1725205845655,-500.0,0.00024931,2]
[336840765,1725205845665,-500.0,0.00024931,2]
[336840766,1725205845675,-500.0,0.00024931,2]
[336840767,1725205845685,-500.0,0.00024931,2]
[336840768,1725205845694,-500.0,0.00024931,2]
[336840769,1725205845705,-500.0,0.00024931,2]
[336840770,1725205845715,-5474.95,0.00024931,2]
[336840771,1725205845726,-500.0,0.00024931,2]
[336840772,1725205845735,-240.18283585,0.00024931,2]
[336840773,1725205845745,-500.0,0.00024931,2]
[336840774,1725205845755,-500.0,0.00024931,2]
[336840775,1725205845765,-500.0,0.00024931,2]
[336840776,1725205845775,-1537.99,0.00024931,2]
[336840777,1725205845785,-771.33,0.00024931,2]
[336840778,1725205845794,-500.0,0.00024931,2]
[336840779,1725205845805,-915.29,0.00024931,2]
[336840780,1725205845815,-500.0,0.00024931,2]
[336840781,1725205845825,-550.37,0.00024931,2]
[336840782,1725205845835,-927.38,0.00024931,2]
[336840783,1725205845845,-504.52320749,0.00024931,2]
[336840784,1725205845854,-560.32,0.00024931,2]
[336840785,1725205845863,-500.0,0.00024931,2]
[336840786,1725205845873,-500.0,0.00024931,2]
[336840787,1725205845882,-500.0,0.00024931,2]
[336840788,1725205845892,-500.0,0.00024931,2]
[336840789,1725205845901,-500.0,0.00024931,2]
[336840790,1725205845910,-500.0,0.00024931,2]
[336840791,1725205845919,-500.0,0.00024931,2]
[336840792,1725205845929,-500.0,0.00024931,2]
[336840793,1725205845938,-500.0,0.00024931,2]
[336840794,1725205845947,-500.0,0.00024931,2]
[336840795,1725205845959,-645.43,0.00024931,2]
[336840796,1725205845968,-500.0,0.00024931,2]
[336840797,1725205845977,-500.0,0.00024931,2]
[336840798,1725205845987,-500.0,0.00024931,2]
[336840799,1725205845996,-566.19,0.00024931,2]
[336840800,1725205846006,-500.0,0.00024931,2]
[336840801,1725205846015,-500.0,0.00024931,2]
[336840802,1725205846024,-425.29799994,0.00024931,2]
[336840803,1725205846034,-500.0,0.00024931,2]
[336840804,1725205846043,-500.0,0.00024931,2]
[336840805,1725205846052,-500.0,0.00024931,2]
[336840806,1725205846061,-584.0,0.00024931,2]
[336840807,1725205846071,-500.0,0.00024931,2]
[336840808,1725205846080,-713.1,0.00024931,2]
[336840809,1725205846089,-151.0,0.00024931,7]
[336840810,1725205846098,-504.7286352,0.00024931,2]
[336840811,1725205846107,-500.0,0.00024931,2]
[336840812,1725205846116,-500.0,0.00024931,2]
[336840813,1725205846125,-151.0,0.00024931,7]
[336840814,1725205846135,-1055.61,0.00024931,2]
[336840815,1725205846144,-500.0,0.00024931,2]
[336840816,1725205846153,-500.0,0.00024931,2]
[336840817,1725205846162,-500.0,0.00024931,2]
[336840818,1725205846171,-606.69,0.00024931,2]
[336840819,1725205846181,-551.99576952,0.00024931,2]
[336840820,1725205846190,-500.0,0.00024931,2]
[336840821,1725205846200,-500.0,0.00024931,2]
[336840822,1725205846212,-500.0,0.00024931,2]
[336840823,1725205846222,-500.0,0.00024931,2]
[336840824,1725205846233,-500.0,0.00024931,2]
[336840825,1725205846243,-1735.56,0.00024931,2]
[336840826,1725205846253,-500.0,0.00024931,2]
[336840827,1725205846264,-500.0,0.00024931,2]
[336840828,1725205846274,-500.0,0.00024931,2]
[336840829,1725205846284,-500.0,0.00024931,2]
[336840830,1725205846297,-1998.55,0.00024931,2]
[336840831,1725205846306,-500.0,0.00024931,2]
[336840832,1725205846315,-1822.63,0.00024931,2]
[336840833,1725205846324,-500.0,0.00024931,2]
[336840834,1725205846334,-500.0,0.00024931,2]
[336840835,1725205846343,-500.0,0.00024931,2]
[336840836,1725205846352,-500.0,0.00024931,2]
[336840837,1725205846362,-2168.91,0.00024931,2]
[336840839,1725205846371,-2333.57,0.00024931,2]
[336840841,1725205846380,-762.25,0.00024931,2]
[336840842,1725205846390,-509.85,0.00024931,2]
[336840843,1725205846399,-500.0,0.00024931,2]
[336840845,1725205846408,-348.78386207,0.00024931,2]
[336840846,1725205846418,-500.0,0.00024931,2]
[336840848,1725205846427,-1065.73,0.00024931,2]
[336840849,1725205846436,-500.0,0.00024931,2]
[336840850,1725205846445,-500.0,0.00024931,2]
[336840852,1725205846457,-500.0,0.00024931,2]
[336840854,1725205846466,-1268.23,0.00024931,2]